fUST/lending_fUST_20251126
["ID","MTS","AMOUNT","RATE_DAILY","PERIOD"]
[394904832,1764106240415,-500.0,0.00010959,2]
[394904833,1764106240424,-500.0,0.00010959,2]
[394904834,1764106240434,-500.0,0.00010959,2]
[394904835,1764106240443,-500.0,0.00010959,2]
[394904836,1764106240453,-500.0,0.00010959,2]
[394904837,1764106240462,-500.0,0.00010959,2]
[394904838,1764106240472,-500.0,0.00010959,2]
[394904839,1764106240482,-500.0,0.00010959,2]
[394904840,1764106240491,-500.0,0.00010959,2]
[394904841,1764106240500,-557.57540888,0.00010959,2]
[394904842,1764106240509,-557.57540888,0.00010959,2]
[394904843,1764106240519,-557.57540888,0.00010959,2]
[394904844,1764106240528,-557.57540888,0.00010959,2]
[394904845,1764106240538,-557.57540888,0.00010959,2]
[394904846,1764106240547,-557.57540888,0.00010959,2]
[394904848,1764106240557,-557.57540888,0.00010959,2]
[394904849,1764106240566,-557.57540888,0.00010959,2]
[394904850,1764106240576,-557.57540888,0.00010959,2]
[394904851,1764106240585,-557.57540888,0.00010959,2]
[394904852,1764106240595,-557.57540888,0.00010959,2]
[394904853,1764106240604,-557.57540888,0.00010959,2]
[394904854,1764106240614,-557.57540888,0.00010959,2]
[394904855,1764106240623,-557.57540888,0.00010959,2]
[394904856,1764106240633,-557.57540888,0.00010959,2]
[394904857,1764106240643,-557.57540888,0.00010959,2]
[394904858,1764106240652,-557.57540888,0.00010959,2]
[394904859,1764106240662,-557.57540888,0.00010959,2]
[394904860,1764106240671,-557.57540888,0.00010959,2]
[394904861,1764106240680,-557.57540888,0.00010959,2]
[394904862,1764106240688,-557.57540888,0.00010959,2]
[394904863,1764106240698,-557.57540888,0.00010959,2]
[394904864,1764106240707,-557.57540888,0.00010959,2]
[394904865,1764106240716,-557.57540888,0.00010959,2]
[394904867,1764106240725,-557.57540888,0.00010959,2]
[394904869,1764106240734,-557.57540888,0.00010959,2]
[394904871,1764106240744,-557.57540888,0.00010959,2]
[394904873,1764106240754,-557.57540888,0.00010959,2]
[394904875,1764106240765,-557.57540888,0.00010959,2]
[394904877,1764106240775,-557.57540888,0.00010959,2]
[394904879,1764106240783,-557.57540888,0.00010959,2]
[394904880,1764106240792,-557.57540888,0.00010959,2]
[394904882,1764106240802,-557.57540888,0.00010959,2]
[394904900,1764106240951,-557.57540888,0.00010959,2]
[394904902,1764106240960,-83.97466307,0.00010959,2]
[394905028,1764106242366,-509.0,6.234e-05,2]
[394905029,1764106242375,-151.0,7.249e-05,2]
[394905031,1764106242385,-151.0,7.249e-05,2]
[394905033,1764106242397,-500.0,7.385e-05,2]
[394905035,1764106242406,-151.0,7.386e-05,2]
[394905037,1764106242415,-201.01383894,7.426e-05,2]
[394905039,1764106242424,-198.0,7.523e-05,2]
[394905041,1764106242433,-201.01383894,7.929e-05,2]
[394905043,1764106242442,-151.0,8.345e-05,2]
[394905045,1764106242451,-151.0,8.345e-05,2]
[394905047,1764106242460,-151.0,8.345e-05,2]
[394905049,1764106242469,-201.01383894,8.433e-05,2]
[394905051,1764106242479,-201.01383894,8.936e-05,2]
[394905053,1764106242488,-201.21485278,9.439e-05,2]
[394905055,1764106242497,-151.0,0.00010201,2]
[394905057,1764106242506,-151.0,0.00010201,2]
[394905059,1764106242515,-151.0,0.00010201,2]
[394905061,1764106242524,-151.0,0.00010485,2]
[394905063,1764106242533,-151.0,0.00010485,2]
[394905065,1764106242543,-151.0,0.00010485,2]
[394905067,1764106242551,-151.0,0.00010685,2]
[394905069,1764106242560,-151.0,0.00010685,2]
[394905071,1764106242570,-151.0,0.00010685,2]
[394905073,1764106242579,-151.0,0.00010685,2]
[394905075,1764106242589,-148.01785552,0.00010685,2]
[394905077,1764106242602,-2.98214448,0.00010685,2]
[394905079,1764106242611,-500.0,0.00010958,2]
[394905081,1764106242621,-1249.9,0.00010958,2]
[394905083,1764106242630,-473.60074581,0.00010959,2]
[394905085,1764106242641,-557.57540888,0.00010959,2]
[394905087,1764106242650,-557.57540888,0.00010959,2]
[394905089,1764106242659,-557.57540888,0.00010959,2]
[394905091,1764106242668,-557.57540888,0.00010959,2]
[394905093,1764106242677,-557.57540888,0.00010959,2]
[394905095,1764106242687,-557.57540888,0.00010959,2]
[394905097,1764106242695,-535.27239254,0.00010959,2]
[394905099,1764106242704,-535.27239254,0.00010959,2]
[394905100,1764106242713,-198.57010456,0.00010959,2]
[394905103,1764106242724,-336.70228798,0.00010959,2]
[394905105,1764106242733,-535.27239254,0.00010959,2]
[394905107,1764106242742,-535.27239254,0.00010959,2]
[394905109,1764106242752,-535.27239254,0.00010959,2]
[394905111,1764106242760,-535.27239254,0.00010959,2]
[394905112,1764106242774,-535.27239254,0.00010959,2]
[394905114,1764106242783,-535.27239254,0.00010959,2]
[394905116,1764106242792,-535.27239254,0.00010959,2]
[394905118,1764106242801,-535.27239254,0.00010959,2]
[394905120,1764106242811,-535.27239254,0.00010959,2]
[394905122,1764106242820,-535.27239254,0.00010959,2]
[394905124,1764106242829,-535.27239254,0.00010959,2]
[394905126,1764106242838,-535.27239254,0.00010959,2]
[394905128,1764106242849,-1036.52825745,0.00010959,2]
[394905130,1764106242858,-1036.52825745,0.00010959,2]
[394905132,1764106242867,-1036.52825745,0.00010959,2]
[394905134,1764106242876,-1036.52825745,0.00010959,2]
[394905136,1764106242885,-1036.52825745,0.00010959,2]
[394905138,1764106242896,-1036.52825745,0.00010959,2]
[394905140,1764106242905,-1036.52825745,0.00010959,2]
[394905142,1764106242914,-1036.52825745,0.00010959,2]
[394905144,1764106242924,-1036.52825745,0.00010959,2]
[394905146,1764106242933,-1036.52825745,0.00010959,2]
[394905148,1764106242943,-1036.52825745,0.00010959,2]
[394905150,1764106242953,-1036.52825745,0.00010959,2]
[394905152,1764106242962,-1036.52825745,0.00010959,2]
[394905154,1764106242972,-1036.52825745,0.00010959,2]
[394905156,1764106242982,-1036.52825745,0.00010959,2]
[394905158,1764106242992,-500.0,0.00010973,2]
[394905160,1764106243001,-448.79899707,0.00010973,2]
[394905162,1764106243010,-301.0,0.00010973,2]
[394905164,1764106243020,-500.0,0.00010973,2]
[394905166,1764106243030,-500.0,0.00010973,2]
[394905168,1764106243040,-500.0,0.00010973,2]
[394905170,1764106243049,-500.0,0.00010973,2]
[394905172,1764106243058,-500.19082328,0.00010973,2]
[394905174,1764106243067,-500.0,0.00010973,2]
[394905193,1764106243230,-501.20506811,0.00010973,2]
[394905195,1764106243241,-166.76312262,0.00010973,2]
[394905197,1764106243250,-500.0,0.00010973,2]
[394905199,1764106243259,-500.0,0.00010973,2]
[394905201,1764106243268,-414.40228081,0.00010973,2]
[394905203,1764106243277,-500.0,0.00010973,2]
[394905205,1764106243286,-501.96961443,0.00010973,2]
[394905207,1764106243295,-500.0,0.00010973,2]
[394905209,1764106243304,-500.0,0.00010973,2]
[394905211,1764106243315,-500.0,0.00010973,2]
[394905213,1764106243324,-500.0,0.00010973,2]
[394905215,1764106243333,-500.0,0.00010973,2]
[394905217,1764106243342,-500.0,0.00010973,2]
[394905219,1764106243351,-500.0,0.00010973,2]
[394905221,1764106243361,-151.0,0.00011,2]
[394905223,1764106243370,-500.0,0.00011095,2]
[394905225,1764106243379,-181.08010149,0.00011096,2]
[394905227,1764106243388,-151.0,0.000111,2]
[394905229,1764106243398,-151.0,0.000111,2]
[394905231,1764106243407,-151.0,0.000111,2]
[394905233,1764106243416,-151.0,0.000111,2]
[394905235,1764106243424,-151.0,0.000111,2]
[394905237,1764106243434,-151.0,0.000111,2]
[394905239,1764106243442,-151.0,0.000112,2]
[394905241,1764106243451,-151.0,0.000112,2]
[394905243,1764106243461,-151.0,0.000112,2]
[394905245,1764106243470,-151.0,0.000112,2]
[394905247,1764106243479,-151.0,0.000112,2]
[394905249,1764106243489,-245.0,0.00011232,2]
[394905251,1764106243498,-500.0,0.00011232,2]
[394905253,1764106243507,-500.0,0.00011232,2]
[394905255,1764106243516,-500.0,0.00011232,2]
[394905257,1764106243525,-515.80315775,0.00011232,2]
[394905259,1764106243535,-537.49,0.00011232,2]
[394905261,1764106243544,-500.0,0.00011232,2]
[394905263,1764106243553,-500.0,0.00011232,2]
[394905265,1764106243562,-10.59004043,0.00011232,2]
[394905528,1764106246782,-151.0,8.345e-05,2]
[394905529,1764106246791,-151.0,0.00010201,2]
[394905530,1764106246800,-255.073455,0.00010485,2]
[394905531,1764106246810,-151.0,0.00010685,2]
[394905532,1764106246820,-151.0,0.00010685,2]
[394905533,1764106246829,-151.0,0.00010685,2]
[394905534,1764106246838,-151.0,0.00010685,2]
[394905535,1764106246849,-151.0,0.00010685,2]
[394905536,1764106246858,-50000.0,0.00010685,2]
[394905537,1764106246867,-151.0,0.00010685,2]
[394905538,1764106246876,-151.0,0.00010685,2]
[394905539,1764106246885,-151.0,0.00010685,2]
[394905540,1764106246895,-151.0,0.00010685,2]
[394905541,1764106246905,-151.0,0.00010685,2]
[394905542,1764106246914,-151.0,0.00010685,2]
[394905543,1764106246923,-151.0,0.00010685,2]
[394905544,1764106246933,-151.0,0.00010685,2]
[394905545,1764106246943,-151.0,0.00010685,2]
[394905546,1764106246952,-151.0,0.00010685,2]
[394905547,1764106246961,-287.600165,0.00010685,2]
[394905548,1764106246971,-500.0,0.00010958,2]
[394905549,1764106246980,-534.29,0.00010958,2]
[394905550,1764106246990,-489.40995957,0.00011232,2]
[394905551,1764106247000,-153.32615652,0.00011232,2]
[394905552,1764106247014,-500.0,0.00011232,2]
[394905553,1764106247023,-649.07,0.00011232,2]
[394905554,1764106247032,-567.07687605,0.00011232,2]
[394905555,1764106247042,-500.0,0.00011232,2]
[394905556,1764106247052,-500.0,0.00011232,2]
[394905557,1764106247061,-500.0,0.00011232,2]
[394905558,1764106247070,-500.0,0.00011232,2]
[394905559,1764106247079,-422.44322404,0.00011232,2]
[394905560,1764106247088,-500.0,0.00011232,2]
[394905561,1764106247097,-500.0,0.00011232,2]
[394905562,1764106247106,-500.0,0.00011232,2]
[394905563,1764106247115,-587.31383544,0.00011232,2]
[394905564,1764106247125,-500.0,0.00011232,2]
[394905565,1764106247137,-500.0,0.00011232,2]
[394905566,1764106247148,-500.0,0.00011232,2]
[394905567,1764106247157,-597.07,0.00011232,2]
[394905568,1764106247166,-500.0,0.00011232,2]
[394905569,1764106247176,-500.0,0.00011232,2]
[394905570,1764106247185,-500.0,0.00011232,2]
[394905571,1764106247194,-500.0,0.00011232,2]
[394905572,1764106247203,-548.42,0.00011232,2]
[394905573,1764106247214,-500.0,0.00011232,2]
[394905574,1764106247224,-950.34,0.00011232,2]
[394905575,1764106247235,-887.62,0.00011232,2]
[394905576,1764106247244,-500.0,0.00011232,2]
[394905577,1764106247254,-889.49,0.00011232,2]
[394905578,1764106247263,-500.0,0.00011232,2]
[394905579,1764106247273,-1087.12,0.00011232,2]
[394905580,1764106247282,-1839.84,0.00011232,2]
[394905581,1764106247291,-500.0,0.00011232,2]
[394905582,1764106247300,-500.0,0.00011232,2]
[394905583,1764106247308,-500.0,0.00011232,2]
[394905584,1764106247318,-500.0,0.00011232,2]
[394905585,1764106247327,-500.0,0.00011232,2]
[394905586,1764106247336,-500.0,0.00011232,2]
[394905587,1764106247345,-500.0,0.00011232,2]
[394905588,1764106247354,-500.0,0.00011232,2]
[394905589,1764106247363,-1153.31,0.00011232,2]
[394905590,1764106247372,-500.0,0.00011232,2]
[394905591,1764106247381,-500.0,0.00011232,2]
[394905592,1764106247390,-500.0,0.00011232,2]
[394905593,1764106247399,-770.37,0.00011232,2]
[394905594,1764106247408,-982.98,0.00011232,2]
[394905595,1764106247417,-500.0,0.00011232,2]
[394905596,1764106247426,-1589.75,0.00011232,2]
[394905597,1764106247435,-679.52,0.00011232,2]
[394905598,1764106247445,-500.0,0.00011232,2]
[394905599,1764106247455,-500.0,0.00011232,2]
[394905600,1764106247464,-500.0,0.00011232,2]
[394905601,1764106247473,-500.0,0.00011232,2]
[394905602,1764106247482,-500.0,0.00011232,2]
[394905603,1764106247491,-500.0,0.00011232,2]
[394905604,1764106247500,-500.0,0.00011232,2]
[394905605,1764106247509,-500.0,0.00011232,2]
[394905606,1764106247518,-500.0,0.00011232,2]
[394905607,1764106247528,-1204.23,0.00011232,2]
[394905608,1764106247537,-500.0,0.00011232,2]
[394905609,1764106247547,-500.0,0.00011232,2]
[394905610,1764106247555,-500.0,0.00011232,2]
[394905611,1764106247565,-500.0,0.00011232,2]
[394905612,1764106247574,-500.0,0.00011232,2]
[394905613,1764106247583,-5986.28,0.00011232,2]
[394905614,1764106247592,-500.0,0.00011232,2]
[394905615,1764106247601,-299.14002837,0.00011232,2]
[394905616,1764106247610,-500.0,0.00011232,2]
[394905617,1764106247619,-500.0,0.00011232,2]
[394905618,1764106247628,-500.0,0.00011232,2]
[394905619,1764106247637,-512.17,0.00011232,2]
[394905620,1764106247648,-442.58160898,0.00011232,2]
[394905621,1764106247657,-500.0,0.00011232,2]
[394905622,1764106247666,-1246.74,0.00011232,2]
[394905623,1764106247676,-1000.0,0.00011232,2]
[394905624,1764106247685,-500.0,0.00011232,2]
[394905625,1764106247694,-500.0,0.00011232,2]
[394905626,1764106247703,-500.0,0.00011232,2]
[394905627,1764106247712,-2203.76,0.00011232,2]
[394905628,1764106247721,-500.0,0.00011232,2]
[394905629,1764106247730,-500.0,0.00011232,2]
[394905630,1764106247739,-500.0,0.00011232,2]
[394905631,1764106247749,-775.38,0.00011232,2]
[394905632,1764106247767,-1047.34,0.00011232,2]
[394905633,1764106247776,-962.67,0.00011232,2]
[394905634,1764106247785,-500.0,0.00011232,2]
[394905635,1764106247794,-500.0,0.00011232,2]
[394905636,1764106247803,-534.39,0.00011232,2]
[394905637,1764106247812,-500.0,0.00011232,2]
[394905638,1764106247821,-500.0,0.00011232,2]
[394905639,1764106247830,-593.36639171,0.00011232,2]
[394905640,1764106247840,-525.04,0.00011232,2]
[394905641,1764106247849,-500.0,0.00011232,2]
[394905642,1764106247858,-500.0,0.00011232,2]
[394905643,1764106247867,-500.0,0.00011232,2]
[394905644,1764106247876,-500.0,0.00011232,2]
[394905645,1764106247885,-500.0,0.00011232,2]
[394905646,1764106247896,-500.0,0.00011232,2]
[394905647,1764106247907,-500.0,0.00011232,2]
[394905648,1764106247916,-500.0,0.00011232,2]
[394905649,1764106247927,-678.03,0.00011232,2]
[394905650,1764106247936,-500.0,0.00011232,2]
[394905651,1764106247946,-1585.2,0.00011232,2]
[394905652,1764106247955,-500.0,0.00011232,2]
[394905653,1764106247964,-1397.12,0.00011232,2]
[394905654,1764106247973,-1312.83,0.00011232,2]
[394905655,1764106247983,-263.80262874,0.00011232,2]
[394905656,1764106247992,-500.0,0.00011232,2]
[394905657,1764106248001,-500.0,0.00011232,2]
[394905658,1764106248011,-556.94,0.00011232,2]
[394905659,1764106248020,-500.0,0.00011232,2]
[394905660,1764106248029,-500.0,0.00011232,2]
[394905661,1764106248038,-1178.13,0.00011232,2]
[394905662,1764106248047,-500.0,0.00011232,2]
[394905663,1764106248056,-500.0,0.00011232,2]
[394905664,1764106248207,-500.94959025,0.00011232,2]
[394905665,1764106248217,-1255.55,0.00011232,2]
[394905666,1764106248226,-500.0,0.00011232,2]
[394905667,1764106248235,-500.0,0.00011232,2]
[394905668,1764106248244,-649.96,0.00011232,2]
[394905669,1764106248253,-500.0,0.00011232,2]
[394905670,1764106248263,-500.0,0.00011232,2]
[394905671,1764106248272,-1346.19,0.00011232,2]
[394905672,1764106248281,-1475.1,0.00011232,2]
[394905673,1764106248290,-2124.34,0.00011232,2]
[394905674,1764106248299,-500.0,0.00011232,2]
[394905675,1764106248308,-500.0,0.00011232,2]
[394905676,1764106248317,-500.0,0.00011232,2]
[394905677,1764106248326,-909.77,0.00011232,2]
[394905678,1764106248335,-2071.06,0.00011232,2]
[394905679,1764106248344,-500.0,0.00011232,2]
[394905680,1764106248355,-1885.54,0.00011232,2]
[394905681,1764106248364,-500.0,0.00011232,2]
[394905682,1764106248373,-1570.8,0.00011232,2]
[394905683,1764106248383,-500.0,0.00011232,2]
[394905684,1764106248391,-353.05189044,0.00011232,2]
[394905685,1764106248402,-1088.63,0.00011232,2]
[394905686,1764106248411,-1539.35,0.00011232,2]
[394905687,1764106248420,-500.0,0.00011232,2]
[394905688,1764106248430,-663.59,0.00011232,2]
[394905689,1764106248440,-500.0,0.00011232,2]
[394905690,1764106248449,-1388.24,0.00011232,2]
[394905691,1764106248458,-1567.16,0.00011232,2]
[394905692,1764106248467,-500.0,0.00011232,2]
[394905693,1764106248476,-500.0,0.00011232,2]
[394905694,1764106248486,-500.0,0.00011232,2]
[394905695,1764106248495,-799.22,0.00011232,2]
[394905696,1764106248504,-500.0,0.00011232,2]
[394905697,1764106248514,-500.0,0.00011232,2]
[394905698,1764106248523,-3374.46,0.00011232,2]
[394905699,1764106248532,-500.0,0.00011232,2]
[394905700,1764106248541,-500.0,0.00011232,2]
[394905701,1764106248550,-500.0,0.00011232,2]
[394905702,1764106248560,-500.0,0.00011232,2]
[394905703,1764106248570,-1062.2,0.00011232,2]
[394905704,1764106248579,-500.0,0.00011232,2]
[394905705,1764106248588,-2253.56,0.00011232,2]
[394905706,1764106248598,-500.0,0.00011232,2]
[394905707,1764106248607,-1320.08,0.00011232,2]
[394905708,1764106248616,-500.0,0.00011232,2]
[394905709,1764106248625,-500.0,0.00011232,2]
[394905710,1764106248635,-2527.53,0.00011232,2]
[394905711,1764106248645,-500.0,0.00011232,2]
[394905712,1764106248654,-728.08,0.00011232,2]
[394905713,1764106248663,-2205.7,0.00011232,2]
[394905714,1764106248672,-1579.57,0.00011232,2]
[394905715,1764106248681,-4514.9,0.00011232,2]
[394905716,1764106248690,-500.0,0.00011232,2]
[394905717,1764106248699,-613.25,0.00011232,2]
[394905718,1764106248709,-500.0,0.00011232,2]
[394905719,1764106248718,-2006.82,0.00011232,2]
[394905720,1764106248727,-957.82,0.00011232,2]
[394905721,1764106248736,-500.0,0.00011232,2]
[394905722,1764106248745,-500.0,0.00011232,2]
[394905723,1764106248754,-500.0,0.00011232,2]
[394905724,1764106248764,-500.0,0.00011232,2]
[394905725,1764106248777,-1051.21,0.00011232,2]
[394905726,1764106248786,-863.96,0.00011232,2]
[394905727,1764106248795,-587.94,0.00011232,2]
[394905728,1764106248803,-2310.0,0.00011232,2]
[394905729,1764106248814,-3928.14,0.00011232,2]
[394905730,1764106248825,-808.35,0.00011232,2]
[394905731,1764106248834,-500.0,0.00011232,2]
[394905732,1764106248845,-202.02739364,0.00011232,2]
[394905733,1764106248856,-2035.28,0.00011232,2]
[394905734,1764106248864,-743.2,0.00011232,2]
[394905735,1764106248874,-2087.73,0.00011232,2]
[394905736,1764106248883,-753.17,0.00011232,2]
[394905737,1764106248892,-500.0,0.00011232,2]
[394905738,1764106248901,-541.74,0.00011232,2]
[394905739,1764106248910,-500.0,0.00011232,2]
[394905740,1764106248919,-522.69,0.00011232,2]
[394905741,1764106248928,-512.66,0.00011232,2]
[394905742,1764106248937,-9674.88,0.00011232,2]
[394905743,1764106248947,-1001.17,0.00011232,2]
[394905744,1764106248955,-500.0,0.00011232,2]
[394905745,1764106248965,-500.0,0.00011232,2]
[394905746,1764106248974,-1661.74,0.00011232,2]
[394905747,1764106248983,-908.37,0.00011232,2]
[394905748,1764106248992,-998.5,0.00011232,2]
[394905749,1764106249001,-500.0,0.00011232,2]
[394905750,1764106249010,-500.0,0.00011232,2]
[394905751,1764106249020,-500.0,0.00011232,2]
[394905752,1764106249029,-500.0,0.00011232,2]
[394905753,1764106249038,-1249.9,0.00011232,2]
[394905754,1764106249047,-500.0,0.00011232,2]
[394905755,1764106249057,-534.29,0.00011232,2]
[394905756,1764106249066,-151.0,0.000113,2]
[394905757,1764106249075,-151.0,0.000113,2]
[394905758,1764106249084,-151.0,0.000113,2]
[394905759,1764106249094,-151.0,0.000114,2]
[394905760,1764106249103,-151.0,0.000114,2]
[394905761,1764106249112,-151.0,0.000114,2]
[394905762,1764106249121,-151.0,0.000114,2]
[394905763,1764106249130,-151.0,0.000114,2]
[394905764,1764106249140,-151.0,0.000114,2]
[394905765,1764106249149,-151.0,0.000115,2]
[394905766,1764106249158,-151.0,0.000115,2]
[394905767,1764106249167,-151.0,0.000115,2]
[394905768,1764106249176,-151.0,0.000115,2]
[394905769,1764106249185,-151.0,0.000115,2]
[394905770,1764106249194,-151.0,0.000115,2]
[394905771,1764106249203,-151.0,0.000115,2]
[394905772,1764106249212,-500.0,0.00011506,2]
[394905773,1764106249221,-408.87053937,0.00011506,2]
[394905774,1764106249231,-537.49,0.00011506,2]
[394905775,1764106249239,-500.0,0.00011506,2]
[394905776,1764106249249,-500.0,0.00011506,2]
[394905777,1764106249257,-500.0,0.00011506,2]
[394905778,1764106249267,-500.0,0.00011506,2]
[394905779,1764106249276,-649.07,0.00011506,2]
[394905780,1764106249285,-500.0,0.00011506,2]
[394905781,1764106249294,-508.3398119,0.00011506,2]
[394905782,1764106249303,-353.17537933,0.00011506,2]
[394905783,1764106249313,-500.0,0.00011506,2]
[394905784,1764106249322,-500.0,0.00011506,2]
[394905785,1764106249331,-500.0,0.00011506,2]
[394905786,1764106249341,-500.0,0.00011506,2]
[394905787,1764106249352,-500.0,0.00011506,2]
[394905788,1764106249362,-500.0,0.00011506,2]
[394905789,1764106249372,-500.0,0.00011506,2]
[394905790,1764106249382,-597.07,0.00011506,2]
[394905791,1764106249392,-500.0,0.00011506,2]
[394905792,1764106249403,-500.0,0.00011506,2]
[394905793,1764106249412,-500.0,0.00011506,2]
[394905794,1764106249422,-500.0,0.00011506,2]
[394905795,1764106249431,-548.42,0.00011506,2]
[394905796,1764106249440,-500.0,0.00011506,2]
[394905797,1764106249450,-950.34,0.00011506,2]
[394905798,1764106249459,-887.62,0.00011506,2]
[394905799,1764106249468,-500.0,0.00011506,2]
[394905800,1764106249477,-889.49,0.00011506,2]
[394905801,1764106249486,-500.0,0.00011506,2]
[394905802,1764106249495,-1087.12,0.00011506,2]
[394905803,1764106249504,-1839.84,0.00011506,2]
[394905804,1764106249513,-500.0,0.00011506,2]
[394905805,1764106249522,-500.0,0.00011506,2]
[394905806,1764106249532,-500.0,0.00011506,2]
[394905807,1764106249541,-500.0,0.00011506,2]
[394905808,1764106249550,-500.0,0.00011506,2]
[394905809,1764106249559,-500.0,0.00011506,2]
[394905810,1764106249569,-500.0,0.00011506,2]
[394905811,1764106249578,-500.0,0.00011506,2]
[394905812,1764106249587,-1153.31,0.00011506,2]
[394905813,1764106249597,-500.0,0.00011506,2]
[394905814,1764106249606,-500.0,0.00011506,2]
[394905815,1764106249615,-639.28628361,0.00011506,2]
[394905816,1764106249623,-770.37,0.00011506,2]
[394905817,1764106249633,-982.98,0.00011506,2]
[394905818,1764106249642,-500.0,0.00011506,2]
[394905819,1764106249652,-1589.75,0.00011506,2]
[394905820,1764106249661,-679.52,0.00011506,2]
[394905821,1764106249670,-500.0,0.00011506,2]
[394905822,1764106249679,-500.0,0.00011506,2]
[394905823,1764106249688,-500.0,0.00011506,2]
[394905824,1764106249698,-577.88891999,0.00011506,2]
[394905825,1764106249707,-500.0,0.00011506,2]
[394905826,1764106249716,-500.0,0.00011506,2]
[394905827,1764106249725,-500.0,0.00011506,2]
[394905828,1764106249734,-500.0,0.00011506,2]
[394905829,1764106249743,-500.0,0.00011506,2]
[394905830,1764106249752,-1204.23,0.00011506,2]
[394905831,1764106249762,-500.0,0.00011506,2]
[394905832,1764106249773,-500.0,0.00011506,2]
[394905833,1764106249782,-394.00087859,0.00011506,2]
[394905834,1764106249791,-500.0,0.00011506,2]
[394905835,1764106249800,-500.0,0.00011506,2]
[394905836,1764106249810,-5986.28,0.00011506,2]
[394905837,1764106249819,-500.0,0.00011506,2]
[394905838,1764106249828,-500.0,0.00011506,2]
[394905839,1764106249837,-500.0,0.00011506,2]
[394905840,1764106249848,-500.0,0.00011506,2]
[394905841,1764106249857,-512.17,0.00011506,2]
[394905842,1764106249866,-500.0,0.00011506,2]
[394905843,1764106249875,-1246.74,0.00011506,2]
[394905844,1764106249885,-1000.0,0.00011506,2]
[394905845,1764106249894,-500.0,0.00011506,2]
[394905846,1764106249904,-500.0,0.00011506,2]
[394905847,1764106249913,-500.0,0.00011506,2]
[394905848,1764106249922,-2203.76,0.00011506,2]
[394905849,1764106249931,-500.0,0.00011506,2]
[394905850,1764106249939,-500.0,0.00011506,2]
[394905851,1764106249948,-500.0,0.00011506,2]
[394905852,1764106249958,-775.38,0.00011506,2]
[394905853,1764106249966,-1047.34,0.00011506,2]
[394905854,1764106249975,-962.67,0.00011506,2]
[394905855,1764106249984,-500.0,0.00011506,2]
[394905856,1764106249993,-500.0,0.00011506,2]
[394905857,1764106250002,-534.39,0.00011506,2]
[394905858,1764106250010,-500.0,0.00011506,2]
[394905859,1764106250020,-500.0,0.00011506,2]
[394905860,1764106250029,-525.04,0.00011506,2]
[394905861,1764106250038,-500.0,0.00011506,2]
[394905862,1764106250048,-500.0,0.00011506,2]
[394905863,1764106250059,-500.0,0.00011506,2]
[394905864,1764106250069,-500.0,0.00011506,2]
[394905865,1764106250078,-500.0,0.00011506,2]
[394905866,1764106250087,-627.07391527,0.00011506,2]
[394905867,1764106250096,-500.0,0.00011506,2]
[394905868,1764106250105,-500.0,0.00011506,2]
[394905869,1764106250115,-678.03,0.00011506,2]
[394905870,1764106250124,-500.0,0.00011506,2]
[394905871,1764106250133,-1585.2,0.00011506,2]